Workbook

Sheet Instructions
B1: General Information KSPQP - PRODUCTION CAPACITY PLAN REPORT
B2: Macros must be enable to use this document.
B3: Objective: The KSPQP Production Capacity Plan Report is used to demonstrate the supplier's production system can support the required customer volume per week . Shared Loading Plans are used to demonstrated all production streams, including internal sub-assembly and sub-tier components can also achieve the required customer volume.
B5: Capacity Verification: The KSPQP Production Capacity Plan Report consists of three elements, Capacity Planning (verification of production readiness), Shared Loading Plans (verification of production stream readiness) and Run at Rate (verification of production performance). The Capacity Analysis Report is divided into 7 areas for ease of use. Each area has a heading at the top of the box. The headings are: 1· Supplier Details 2· Supplier Contact Details 3· Part Information 4 a· Capacity Planning 4 b. Shared loading Plan 5· Run at Rate 6· Capacity Confirmation 7· Kasai Approval Data input: The KSPQP Production Capacity Plan Report worksheet has been divided into a number of easy to identify information boxes. Each box has a main heading to allow easy recognition. Within each box the user is required to input a variety of data. This document will explain how to complete each section in turn. Input & Calculation Cells: Data can only be input into the workbook in the cells on each sheet that require data. This ensures that the headings or other information cannot be accidentally erased or modified. These cells (input cells) are clearly identified as white in colour. Cells that are green in colour are calculation cells. The user cannot enter data into these cells. They calculate values according to specific formulae using data entered into the input cells.
B9: 1 Supplier Details.
E11: KSPQP - PRODUCTION CAPACITY PLAN
B12: 1 Supplier Details | K12: Date completed: | L12: 2023-10-06
B14: Supplier Company Name: | E14: Example (A Company LTD)
B16: Supplier Address: | E16: Example (Stephenson Industrial Estate, Washington, Tyne and Wear, NE37 3HR)
B18: Supplier Company Name: Enter your company name. Supplier Address: Enter your company address. Date Completed: The date you completed the study.
B22: 2 Supplier Contact Details.
B24: 2 Supplier Contact Details
B26: Supplier Representative Name: | E26: Example (A Person) | H26: Supplier Representative Role: | J26: Example (Capacity Planner)
B28: Supplier Email Address: | E28: Example (aperson@acompanyltd.com) | H28: Supplier Phone Number: | J28: 07700000000
B30: Supplier Representative Name: Enter the name of the person who completed the document. Supplier Representative Role: Enter the role within your company of the person who completed the document. Supplier Email Address: Enter the email address of the person that completed the document. Supplier Phone Number: Enter the phone number of the person that completed the document.
B35: 3 Part Information.
B37: 3 Part Information
B39: Part Name: | E39: Example (A part name) | H39: Part Number: | J39: Example (1234 KUK123)
B41: Model: | E41: Example (Car model) | H41: Capacity Study Volume: | J41: 2904
B43: Part Name: Enter the name of part that the study is based on. Part Number: Enter the part number that the study is based on. Model: Enter the vehicle model that the study is based on. Capacity Study Volume: Enter the capacity study volume supplied by Kasai.
B48: 4 a Capacity Planning.
B50: 4 a Capacity Planning | F50: Shared | G50: 2 | H50: 1 | I50: 2 | J50: 2 | K50: 2 | L50: 2
F51: Dedicated | G51: 2 | H51: 1 | I51: 2 | J51: 2 | K51: 2 | L51: 2
B52: Total Production Hours | F52: Process 1 | G52: Process 2 | H52: Process 3 | I52: Process 4 | J52: Process 5 | K52: Process 6 | L52: Process 7
B53: Process Description: | F53: Example 1 | G53: Example 2 | H53: Example 3 | I53: Example 4 | J53: Example 5 | K53: Example 6 | L53: Example 7
B54: Shared or Dedicated process: | F54: 1 | G54: 2 | H54: 1 | I54: 2 | J54: 2 | K54: 2 | L54: 2
B55: Shifts per day: | F55: 3 | G55: 3 | H55: 3
B56: Total hours per shift: | F56: 8 | G56: 8 | H56: 8
B57: Breaks per shift (Minutes): | F57: 50 | G57: 50 | H57: 50
B58: Days per week: | F58: 5 | G58: 5 | H58: 5
B59: Net available time per week (Minutes): | F59: 6450 | G59: 6450 | H59: 6450 | I59: 0 | J59: 0 | K59: 0 | L59: 0
B61: Projected Downtime
B62: Planned maintenance per week (Minutes): | F62: 120 | G62: 120 | H62: 120
B63: Inspection of facility per week (Minutes): | F63: 25 | G63: 25 | H63: 25
B64: Planned changeovers (per Week): | F64: 1 | G64: 1 | H64: 1
B65: Time per changeover (Minutes): | F65: 30 | G65: 30 | H65: 30
B66: Total planned downtime per week (Minutes): | F66: 175 | G66: 175 | H66: 175 | I66: 0 | J66: 0 | K66: 0 | L66: 0
B68: Required Number of Parts
B69: Projected parts rejected and reworked (%): | F69: 0.03 | G69: 0.03 | H69: 0.03
B70: Required number of parts per week: | F70: 2991.12 | G70: 2991.12 | H70: 2991.12 | I70: 2904 | J70: 2904 | K70: 2904 | L70: 2904
B72: Planned Cycle Time / Capacity
B73: Ideal planned cycle time per tool (Seconds): | F73: 65 | G73: 100 | H73: 100
B74: Number of tools in parallel: | F74: 1 | G74: 1 | H74: 1
B75: Number of parts produced per tool: | F75: 1 | G75: 1 | H75: 1
B76: Calculated allocation % to meet demand (%): | F76: 0.5163952191 | G76: 0.7944541833 | H76: 0.7944541833 | I76: =IFERROR(I77/(((I59)-I66)),"-") -> - | J76: - | K76: - | L76: -
B77: Calculated time required to meet demand (Minutes): | F77: 3240.38 | G77: 4985.2 | H77: 4985.2 | I77: =IFERROR(((I70/I74)/I75)/(60/I73),"-") -> - | J77: - | K77: - | L77: -
B78: Capacity planning confirmation: | F78: Capacity OK | G78: Capacity OK | H78: Capacity OK | I78: =IF(I76 = "-","-",IF(I76 < 1,"Capacity OK",IF(I76 > 1,"Over Capacity","Next"))) -> - | J78: - | K78: - | L78: - | O78: =IF(F76 = "-","-",IF(F76 > 100%,"Over Capacity","")) -> 
B80: Actual Planned Production
B81: Planned production per week: | F81: 2991.12 | G81: 2991.12 | H81: 2991.12 | I81: =IFERROR(((((((I59)-I66)*60)*I76)/I73)*I74)*I75,"-") -> - | J81: - | K81: - | L81: -
B83: Total Production Hours Process Description: Enter a description for the process being studied. Shared or Dedicated process: Select shared or dedicated depending on if the equipment / process is used for the production of other parts. If shared is selected an associated shared loading plan tab will appear, this shared loading plan must be populated with all the production that is planned on the shared resource. Shifts per day: Enter the number of shifts worked on this process. Total hours per shift: Enter the hours worked per shift. Breaks per shift (Minutes): Enter the total breaks per shift in minutes. Days per week: Enter the total number of day's per week worked. Net available time per week (Minutes): Shows the net available time per week for this process. Projected Downtime Planned maintenance per week (Minutes): Enter the total time used for planned maintenance per week in minutes. Inspection of facility per week (Minutes): Enter the total time used for inspection of the facility per week in minutes. Planned changeovers (per Week): Enter the total number of planned change overs per week. Time per changeover (Minutes): Enter the time that is taken to do one changeover in minutes. Total planned downtime per week (Minutes): Shows the total amount of planned downtime for this process per week. Required Number of Parts Projected parts rejected and reworked (%): Enter the project percentage of rework and reject parts. Required number of parts per week: Shows the total number of parts including rejects that is required per week to cover the customers demand. Planned Cycle Time / Capacity Ideal planned cycle time per tool (Seconds): Enter the ideal planned cycle time for the process in seconds. Number of tools in parallel: Enter the number of tools that run in parallel. Number of parts produced per tool: Enter the number of parts that are produced each cycle per tool. Calculated allocation % to meet demand (%): Shows the percentage of available production time for this process that is required to cover the customers demand. Calculated time required to meet demand (Minutes): Shows the calculated time required to meet the customer demand in minutes. Capacity planning confirmation: When capacity is OK cell is highlighted green and shows 'Capacity OK', when over capacity cell is highlight in red and shows 'Over Capacity' Actual Planned Production Planned production per week: Shows the planned production per week.
B115: 4 b Shared loading Plan.
X150: =IFERROR(((R141*60)/R145)*R147,"-") -> -
B152: Supplier Company Name: Auto populated from 'KSPQP - PRODUCTION CAPACITY PLAN'. Supplier Address: Auto populated from 'KSPQP - PRODUCTION CAPACITY PLAN'. Shared Process Name: Auto populated from 'KSPQP - PRODUCTION CAPACITY PLAN'. Date Completed: Auto populated from 'KSPQP - PRODUCTION CAPACITY PLAN'. Supplier Representative Name: Auto populated from 'KSPQP - PRODUCTION CAPACITY PLAN'. Supplier Email Address: Auto populated from 'KSPQP - PRODUCTION CAPACITY PLAN'. Supplier Representative Role: Auto populated from 'KSPQP - PRODUCTION CAPACITY PLAN'. Supplier Phone Number: Auto populated from 'KSPQP - PRODUCTION CAPACITY PLAN'. The 'Shared Loading Plan' is divided into seven columns allowing seven different part numbers to be shown. The first column is auto populated from the 'KSPQP - PRODUCTION CAPACITY PLAN'. The final column is reserved for production of other customers parts. The remaining columns are for any other Kasai parts that share the same process. Part Name: Enter the part name. Part Number: Enter the Part Number. Capacity Study Volume: Enter the required capacity study volume for the part. Net Available Time for Process: Enter the net available time for the part. Total planned downtime per week: Enter the total amount of planned downtime per week for the part. Operation Time: Shows the Operation Time available for this part. Projected parts rejected and reworked: Enter the projected percentage of rejected and reworked parts. Ideal planned cycle time: Enter the ideal planned cycle time for the part. Calculated allocation % to meet demand: Enter the percentage of this process that is dedicated to the part. Planned production per week: Shows the planned number of parts that could be produce based on above entered data. The total percentage should not exceed 100%.
B178: 5 Run at Rate.
B180: 5 Run at Rate
B182: Availability
B183: Total duration of production run (Minutes): | F183: 3330 | G183: 6275 | H183: 6275
B184: Total planned downtime (Minutes): | F184: 60 | G184: 60 | H184: 60
B185: Loading Time (Minutes): | F185: 3270 | G185: 6215 | H185: 6215 | I185: 0 | J185: 0 | K185: 0 | L185: 0
B186: Total unplanned downtime (Minutes): | F186: 30 | G186: 30 | H186: 30
B187: Operation Time (Minutes): | F187: 3240 | G187: 6185 | H187: 6185 | I187: 0 | J187: 0 | K187: 0 | L187: 0
B188: Availability (%): | F188: 0.9908256881 | G188: 0.9951729686 | H188: 0.9951729686 | I188: - | J188: - | K188: - | L188: -
B190: Quality (Right First Time)
B191: Total parts produced: | F191: 2991 | G191: 3500 | H191: 3500
B192: Total scrap and reject parts produced: | F192: 87.1 | G192: 87.1 | H192: 87
B193: Quality RFT (%): | F193: 0.9708793046 | G193: 0.9751142857 | H193: 0.9751428571 | I193: - | J193: - | K193: - | L193: -
B196: Productivity
B197: Ideal planned cycle time (Seconds): | F197: 65 | G197: 100 | H197: 100 | I197: 0 | J197: 0 | K197: 0 | L197: 0
E198: Actual cycle time (Seconds): | F198: 65 | G198: 100 | H198: 100
E199: Operating speed rate (%): | F199: 1 | G199: 1 | H199: 1 | I199: - | J199: - | K199: - | L199: -
E200: Required Manufacturing time (Minutes): | F200: 3240.25 | G200: 5833.333333 | H200: 5833.333333 | I200: 0 | J200: 0 | K200: 0 | L200: 0
E201: Operation Time (Minutes): | F201: 3240 | G201: 6185 | H201: 6185 | I201: 0 | J201: 0 | K201: 0 | L201: 0
E202: Net operating rate (%): | F202: 1.00007716 | G202: 0.9431420102 | H202: 0.9431420102 | I202: - | J202: - | K202: - | L202: -
B203: Productivity (%): | F203: 1.00007716 | G203: 0.9431420102 | H203: 0.9431420102 | I203: - | J203: - | K203: - | L203: -
B205: OEE
B206: =B188 -> Availability (%): | F206: 0.9908256881 | G206: 0.9951729686 | H206: 0.9951729686 | I206: - | J206: - | K206: - | L206: -
B207: =B193 -> Quality RFT (%): | F207: 0.9708793046 | G207: 0.9751142857 | H207: 0.9751428571 | I207: - | J207: - | K207: - | L207: -
B208: =B203 -> Productivity (%): | F208: 1.00007716 | G208: 0.9431420102 | H208: 0.9431420102 | I208: - | J208: - | K208: - | L208: -
B209: OEE (%): | F209: 0.9620463812 | G209: 0.9152319657 | H209: 0.9152587825 | I209: - | J209: - | K209: - | L209: -
B211: Availability Total duration of production run (Minutes): Enter the total time taken for the production run in minutes. Total planned downtime (Minutes): Enter the total amount of planned downtime during the production run in minutes. Loading Time (Minutes): Shows the total amount of loading time available in minutes. Total unplanned downtime (Minutes): Enter the total amount of unplanned downtime that occurred during the production run in minutes. Operation Time (Minutes): Shows the operation time available for the production run. Availability (%): Shows the availability percentage during the production run. Quality (Right First Time) Total parts produced: Enter the total number of parts that were produced during the production run. Total scrap and reject parts produced: Enter the total number of scrap and reject parts that were produced during the production run. Quality RFT (%): Shows the Right First Time percentage achieved during the production run. Productivity Ideal planned cycle time (Seconds): Shows the ideal planned cycle time for this process taken from the capacity planning stage. Actual cycle time (Seconds): Enter the actual cycle time achieved during the production run. Operating speed rate (%): Shows the operating speed rate that was achieved during the production run. Required Manufacturing time (Minutes): Shows the required manufacturing time for the production run in minutes. Operation Time (Minutes): Shows the operation time for the production run minutes. Net operating rate (%): Shows the net operating rate percentage that was achieved during the production run. Productivity (%): Shows the productivity percentage that was achieved during the production run. OEE Availability (%): Shows the availability percentage achieved during the production run. Quality RFT (%): Shows the right first time percentage achieved during the production run. Productivity (%): Shows the productivity percentage achieved during the production run. OEE (%): Shows the OEE percentage achieved during the production run.
B239: 6 Capacity Confirmation.
B241: 6 Capacity Confirmation
B243: Projected Available Parts
B244: Actual shared allocation percentage (%): | F244: 0.5164 | G244: 1 | H244: 0.6
B245: Number of parts available to ship per week: | F245: 2904.267469 | G245: 3462.562247 | H245: 2077.598222 | I245: - | J245: - | K245: - | L245: -
B246: Number of parts required per week: | F246: 2904 | G246: 2904 | H246: 2904 | I246: 2904 | J246: 2904 | K246: 2904 | L246: 2904
B247: Percentage above / below required parts per week: | F247: 1.000092104 | G247: 1.192342372 | H247: 0.7154263848 | I247: - | J247: - | K247: - | L247: -
F249: Example 1 | G249: Example 2 | H249: Example 3 | I249: Example 4 | J249: Example 5 | K249: Example 6 | L249: Example 7
E250: Number of parts available to ship per week: | F250: 2904.267469 | G250: 3462.562247 | H250: 2077.598222 | I250: - | J250: - | K250: - | L250: -
E251: Number of parts required per week: | F251: 2904 | G251: 2904 | H251: 2904 | I251: 2904 | J251: 2904 | K251: 2904 | L251: 2904
B267: Projected Available Parts Actual shared allocation percentage (%): Enter the actual percentage of the total production time that will be allocated to this process. Number of parts available to ship per week: Shows the number of parts that would be available to ship based on information from the 'Capacity Planning' and 'Run at Rate' stages. Number of parts required per week: Shows the required capacity planning volume that should be achieved. Percentage above / below required parts per week: Shows what percentage of the required number of parts will be available to ship. The graph titled 'Bottleneck Processes' visual shows where any bottle neck process are that could stop the 'Capacity Planning Volume' being achieved.
B275: 7 Kasai Approval.
B278: 7 Kasai Approval | D278: Approval: | E278: 1 | H278: Comments:
B280: Kasai Representative Name: | E280: Example (A Person)
B282: Kasai Representative Role: | E282: Example (aperson@kasai-group.com) | H282: Please select
H283: Approved
D284: Date completed: | E284: 2023-10-06 | H284: Rejected
B286: This section should be completed by a Kasai representative. Approval: Select 'Approved' or 'Rejected' from the drop down list. Kasai Representative Name: Enter your name. Kasai Representative Role: Enter your role within Kasai. Date completed: Enter the date the study was reviewed. Comments: Enter any comments you would like to make.

Sheet Capacity Planning
E2: KSPQP - PRODUCTION CAPACITY PLAN
B3: 1 Supplier Details | K3: Date completed: | L3: 2023-11-08
B5: Supplier Company Name: | E5: Example (A Company LTD)
B7: Supplier Address: | E7: Example (Stephenson Industrial Estate, Washington, Tyne and Wear, NE37 3HR)
B10: 2 Supplier Contact Details
B12: Supplier Representative Name: | E12: Example (A Person) | H12: Supplier Representative Role: | J12: Example (Capacity Planner)
B14: Supplier Email Address: | E14: Example (aperson@acompanyltd.com) | H14: Supplier Phone Number: | J14: 07700000000
B17: 3 Part Information
B19: Part Name: | E19: Example (A part name) | H19: Part Number: | J19: Example (1234 KUK123)
B21: Model: | E21: Example (Car model) | H21: Capacity Study Volume: | J21: 2904
B24: 4 Capacity Planning | F24: Shared
F25: Dedicated
B26: Total Production Hours | F26: Process 1 | G26: Process 2 | H26: Process 3 | I26: Process 4 | J26: Process 5 | K26: Process 6 | L26: Process 7
B27: Process Description: | F27: Injection Moulding 2003 | G27: Example 2 | H27: Example 3 | I27: Example 4 | J27: Example 5 | K27: Example 6 | L27: Example 7
B28: Shared or Dedicated process: | F28: 1 | G28: 2 | H28: 1 | I28: 2 | J28: 2 | K28: 2 | L28: 2
B29: Shifts per day: | F29: 3 | G29: 3 | H29: 3
B30: Total hours per shift: | F30: 8 | G30: 8 | H30: 8
B31: Breaks per shift (Minutes): | F31: 50 | G31: 50 | H31: 50
B32: Days per week: | F32: 5 | G32: 5 | H32: 5
B33: Net available time per week (Minutes): | F33: =(((F29*F30)*F32)*60)-((F29*F32)*F31) -> 6450 | G33: =(((G29*G30)*G32)*60)-((G29*G32)*G31) -> 6450 | H33: 6450 | I33: 0 | J33: 0 | K33: 0 | L33: 0
B35: Projected Downtime
B36: Planned maintenance per week (Minutes): | F36: 135 | G36: 135 | H36: 135
B37: Inspection of facility per week (Minutes): | F37: 0 | G37: 0 | H37: 0
B38: Planned changeovers (per Week): | F38: 3 | G38: 3 | H38: 3
B39: Time per changeover (Minutes): | F39: 30 | G39: 30 | H39: 30
B40: Total planned downtime per week (Minutes): | F40: =(F38*F39)+F36+F37 -> 225 | G40: =(G38*G39)+G36+G37 -> 225 | H40: 225 | I40: 0 | J40: 0 | K40: 0 | L40: 0
B42: Required Number of Parts
B43: Projected parts rejected and reworked (%): | F43: 0.0245 | G43: 0.0245 | H43: 0.0245
B44: Required number of parts per week: | F44: =($J$21*F43)+$J$21 -> 2975.148 | G44: =($J$21*G43)+$J$21 -> 2975.148 | H44: =($J$21*H43)+$J$21 -> 2975.148 | I44: 2904 | J44: 2904 | K44: 2904 | L44: 2904
B46: Planned Cycle Time / Capacity
B47: Ideal planned cycle time per tool (Seconds): | F47: 65 | G47: 100 | H47: 100
B48: Number of tools in parallel: | F48: 1 | G48: 1 | H48: 1
B49: Number of parts produced per tool: | F49: 1 | G49: 1 | H49: 1
B50: Calculated allocation % to meet demand (%): | F50: =IFERROR((F51/60)/(F33/60),"-") -> 0.5345855814 | G50: =IFERROR((G51/60)/(G33/60),"-") -> 0.803655814 | H50: =IFERROR((H51/60)/(H33/60),"-") -> 0.803655814 | I50: - | J50: - | K50: - | L50: -
B51: Calculated time required to meet demand (Minutes): | F51: =IFERROR(((((F44*((F47/F48)/F49))/3600))+(F40/60))*60,"-") -> 3448.077 | G51: =IFERROR(((((G44*((G47/G48)/G49))/3600))+(G40/60))*60,"-") -> 5183.58 | H51: =IFERROR(((((H44*((H47/H48)/H49))/3600))+(H40/60))*60,"-") -> 5183.58 | I51: - | J51: - | K51: - | L51: -
B52: Capacity planning confirmation: | F52: =IF(F50 = "-","-",IF(F50 < 1,"Capacity OK",IF(F50 > 1,"Over Capacity","Next"))) -> Capacity OK | G52: =IF(G50 = "-","-",IF(G50 < 1,"Capacity OK",IF(G50 > 1,"Over Capacity","Next"))) -> Capacity OK | H52: Capacity OK | I52: - | J52: - | K52: - | L52: -
B54: Actual Planned Production
B55: Planned production per week: | F55: =IFERROR((((F33*F50)-F40)*60)/F47,"-") -> 2975.148 | G55: =IFERROR((((G33*G50)-G40)*60)/G47,"-") -> 2975.148 | H55: =IFERROR((((H33*H50)-H40)*60)/H47,"-") -> 2975.148 | I55: - | J55: - | K55: - | L55: -
B58: 5 Run at Rate
B60: Availability
B61: Total duration of production run (Minutes): | F61: 1258 | G61: 6275 | H61: 6275
B62: Total planned downtime (Minutes): | F62: 240 | G62: 60 | H62: 60
B63: Loading Time (Minutes): | F63: =F61-F62 -> 1018 | G63: =G61-G62 -> 6215 | H63: 6215 | I63: 0 | J63: 0 | K63: 0 | L63: 0
B64: Total unplanned downtime (Minutes): | F64: 107 | G64: 30 | H64: 30
B65: Operation Time (Minutes): | F65: =F63-F64 -> 911 | G65: =G63-G64 -> 6185 | H65: 6185 | I65: 0 | J65: 0 | K65: 0 | L65: 0
B66: Availability (%): | F66: =IFERROR(F65/F63,"-") -> 0.894891945 | G66: =IFERROR(G65/G63,"-") -> 0.9951729686 | H66: 0.9951729686 | I66: - | J66: - | K66: - | L66: -
B68: Quality (Right First Time)
B69: Total parts produced: | F69: 822 | G69: 3500 | H69: 3500
B70: Total scrap and reject parts produced: | F70: 24 | G70: 87.1 | H70: 87
B71: Quality RFT (%): | F71: =IFERROR((F69-F70)/F69,"-") -> 0.9708029197 | G71: =IFERROR((G69-G70)/G69,"-") -> 0.9751142857 | H71: 0.9751428571 | I71: - | J71: - | K71: - | L71: -
B74: Productivity
B75: Ideal planned cycle time (Seconds): | F75: =F47 -> 65 | G75: 100 | H75: 100 | I75: 0 | J75: 0 | K75: 0 | L75: 0
E76: Actual cycle time (Seconds): | F76: 66.5 | G76: 100 | H76: 100
E77: Operating speed rate (%): | F77: =IFERROR(F75/F76,"-") -> 0.977443609 | G77: =IFERROR(G75/G76,"-") -> 1 | H77: 1 | I77: - | J77: - | K77: - | L77: -
E78: Required Manufacturing time (Minutes): | F78: =IFERROR((F69*F76)/60,"-") -> 911.05 | G78: =IFERROR((G69*G76)/60,"-") -> 5833.333333 | H78: 5833.333333 | I78: 0 | J78: 0 | K78: 0 | L78: 0
E79: Operation Time (Minutes): | F79: =F65 -> 911 | G79: =G65 -> 6185 | H79: 6185 | I79: 0 | J79: 0 | K79: 0 | L79: 0
E80: Net operating rate (%): | F80: =IFERROR(F78/F79,"-") -> 1.000054885 | G80: =IFERROR(G78/G79,"-") -> 0.9431420102 | H80: 0.9431420102 | I80: - | J80: - | K80: - | L80: -
B81: Productivity (%): | F81: =IFERROR(F77*F80,"-") -> 0.9774972558 | G81: =IFERROR(G77*G80,"-") -> 0.9431420102 | H81: 0.9431420102 | I81: - | J81: - | K81: - | L81: -
B83: OEE
B84: =B66 -> Availability (%): | F84: =F66 -> 0.894891945 | G84: =G66 -> 0.9951729686 | H84: 0.9951729686 | I84: - | J84: - | K84: - | L84: -
B85: =B71 -> Quality RFT (%): | F85: =F71 -> 0.9708029197 | G85: =G71 -> 0.9751142857 | H85: 0.9751428571 | I85: - | J85: - | K85: - | L85: -
B86: =B81 -> Productivity (%): | F86: =F81 -> 0.9774972558 | G86: =G81 -> 0.9431420102 | H86: 0.9431420102 | I86: - | J86: - | K86: - | L86: -
B87: OEE (%): | F87: =IFERROR(F84*F85*F86,"-") -> 0.8492141454 | G87: =IFERROR(G84*G85*G86,"-") -> 0.9152319657 | H87: 0.9152587825 | I87: - | J87: - | K87: - | L87: -
B90: 6 Capacity Confirmation
B92: Projected Available Parts
B93: Actual shared allocation percentage (%): | F93: 0.5346 | G93: 1 | H93: 0.6
B94: Number of parts available to ship per week: | F94: =IFERROR(((F33-F40)*F93)/(F65/(F69-F70)),"-") -> 2915.095752 | G94: =IFERROR(((G33-G40)*G93)/(G65/(G69-G70)),"-") -> 3434.97211 | H94: 2061.043654 | I94: - | J94: - | K94: - | L94: -
B95: Number of parts required per week: | F95: =$J$21 -> 2904 | G95: =$J$21 -> 2904 | H95: 2904 | I95: 2904 | J95: 2904 | K95: 2904 | L95: 2904
B96: Percentage above / below required parts per week: | F96: =IFERROR(F94/F95,"-") -> 1.003820851 | G96: =IFERROR(G94/G95,"-") -> 1.182841636 | H96: 0.7097257762 | I96: - | J96: - | K96: - | L96: -
F98: =F27 -> Injection Moulding 2003 | G98: Example 2 | H98: Example 3 | I98: Example 4 | J98: Example 5 | K98: Example 6 | L98: Example 7
E99: =B94 -> Number of parts available to ship per week: | F99: =F94 -> 2915.095752 | G99: =G94 -> 3434.97211 | H99: 2061.043654 | I99: - | J99: - | K99: - | L99: -
E100: =B95 -> Number of parts required per week: | F100: =F95 -> 2904 | G100: 2904 | H100: 2904 | I100: 2904 | J100: 2904 | K100: 2904 | L100: 2904
B118: 7 Kasai Approval | D118: Approval: | E118: 1 | H118: Comments:
B120: Kasai Representative Name: | E120: Example (A Person)
B122: Kasai Representative Role: | E122: Example (aperson@kasai-group.com) | H122: Please select
H123: Approved
D124: Date completed: | E124: 2023-10-06 | H124: Rejected

Sheet Process 1 Shared Loading Plan
E3: KSPQP - SHARED LOADING PLAN PROCESS 1
R4: Date completed: | S4: ='Capacity Planning'!L3 -> 2023-11-08
B6: Supplier Company Name: | E6: ='Capacity Planning'!E5:L5 -> Example (A Company LTD) | M6: Supplier Representative Name: | Q6: ='Capacity Planning'!E12 -> Example (A Person)
B8: Supplier Address: | E8: ='Capacity Planning'!E7:L7 -> Example (Stephenson Industrial Estate, Washington, Tyne and Wear, NE37 3HR) | M8: Supplier Email Address: | Q8: ='Capacity Planning'!E14 -> Example (aperson@acompanyltd.com)
M10: Supplier Representative Role: | Q10: ='Capacity Planning'!J12 -> Example (Capacity Planner)
B12: Shared Process Name: | E12: ='Capacity Planning'!F27 -> Injection Moulding 2003 | M12: Supplier Phone Number: | Q12: ='Capacity Planning'!J14 -> 07700000000
B16: Part Name: | F16: ='Capacity Planning'!E19 -> Example (A part name) | R16: Other Customer Parts
B18: Part Number: | F18: ='Capacity Planning'!J19 -> Example (1234 KUK123) | R18: Other Customer Parts
B20: Capacity Study Volume: | F20: ='Capacity Planning'!J21 -> 2904
B22: Net Available Time for Process: | F22: ='Capacity Planning'!F33 -> 6450
B24: Total planned downtime per week (Minutes): | F24: ='Capacity Planning'!F40 -> 225
B26: Operation Time (Minutes): | F26: =F22-F24 -> 6225 | H26: =H22-H24 -> 0 | J26: =J22-J24 -> 0 | L26: =L22-L24 -> 0 | N26: =N22-N24 -> 0 | P26: =P22-P24 -> 0 | R26: =R22-R24 -> 0
B28: Projected parts rejected and reworked (%): | F28: ='Capacity Planning'!F43 -> 0.0245
B30: Ideal planned cycle time (Seconds): | F30: ='Capacity Planning'!F47 -> 65
T31: Total
B32: Calculated allocation % to meet demand (%): | F32: ='Capacity Planning'!F50 -> 0.5345855814 | T32: =SUM(E32:R32) -> 0.5345855814
B34: Planned production per week (Parts): | F34: =IFERROR((((F22*F32)-F24))*(60/F30),"-") -> 2975.148 | H34: =IFERROR((((H22*H32)-H24))*(60/H30),"-") -> - | J34: =IFERROR((((J22*J32)-J24))*(60/J30),"-") -> - | L34: =IFERROR((((L22*L32)-L24))*(60/L30),"-") -> - | N34: =IFERROR((((N22*N32)-N24))*(60/N30),"-") -> - | P34: =IFERROR((((P22*P32)-P24))*(60/P30),"-") -> - | R34: =IFERROR((((R22*R32)-R24))*(60/R30),"-") -> -

Sheet Process 2 Shared Loading Plan (hidden)
E3: KSPQP - SHARED LOADING PLAN PROCESS 2
R4: Date completed: | S4: ='Capacity Planning'!L3 -> 2023-11-08
B6: Supplier Company Name: | E6: ='Capacity Planning'!E5:L5 -> Example (A Company LTD) | M6: Supplier Representative Name: | Q6: ='Capacity Planning'!E12 -> Example (A Person)
B8: Supplier Address: | E8: ='Capacity Planning'!E7:L7 -> Example (Stephenson Industrial Estate, Washington, Tyne and Wear, NE37 3HR) | M8: Supplier Email Address: | Q8: ='Capacity Planning'!E14 -> Example (aperson@acompanyltd.com)
M10: Supplier Representative Role: | Q10: ='Capacity Planning'!J12 -> Example (Capacity Planner)
B12: Shared Process Name: | E12: ='Capacity Planning'!G27 -> Example 2 | M12: Supplier Phone Number: | Q12: ='Capacity Planning'!J14 -> 07700000000
B16: Part Name: | F16: ='Capacity Planning'!E19 -> Example (A part name) | R16: Other Customer Parts
B18: Part Number: | F18: ='Capacity Planning'!J19 -> Example (1234 KUK123) | R18: Other Customer Parts
B20: Capacity Study Volume: | F20: ='Capacity Planning'!J21 -> 2904
B22: Net Available Time for Process: | F22: ='Capacity Planning'!G33 -> 6450
B24: Total planned downtime per week (Minutes): | F24: ='Capacity Planning'!G40 -> 225
B26: Operation Time (Minutes): | F26: =F22-F24 -> 6225 | H26: =H22-H24 -> 0 | J26: =J22-J24 -> 0 | L26: =L22-L24 -> 0 | N26: =N22-N24 -> 0 | P26: =P22-P24 -> 0 | R26: =R22-R24 -> 0
B28: Projected parts rejected and reworked (%): | F28: ='Capacity Planning'!G43 -> 0.0245
B30: Ideal planned cycle time (Seconds): | F30: ='Capacity Planning'!G47 -> 100
T31: Total
B32: Calculated allocation % to meet demand (%): | F32: ='Capacity Planning'!G50 -> 0.803655814 | T32: =SUM(E32:R32) -> 0.803655814
B34: Planned production per week (Parts): | F34: =IFERROR((((F22*F32)-F24))*(60/F30),"-") -> 2975.148 | H34: =IFERROR((((H22*H32)-H24))*(60/H30),"-") -> - | J34: =IFERROR((((J22*J32)-J24))*(60/J30),"-") -> - | L34: =IFERROR((((L22*L32)-L24))*(60/L30),"-") -> - | N34: =IFERROR((((N22*N32)-N24))*(60/N30),"-") -> - | P34: =IFERROR((((P22*P32)-P24))*(60/P30),"-") -> - | R34: =IFERROR((((R22*R32)-R24))*(60/R30),"-") -> - | X34: =IFERROR(((R26*60)/R30)*R32,"-") -> -

Sheet Process 3 Shared Loading Plan
E3: KSPQP - SHARED LOADING PLAN PROCESS 3
R4: Date completed: | S4: ='Capacity Planning'!L3 -> 2023-11-08
B6: Supplier Company Name: | E6: ='Capacity Planning'!E5:L5 -> Example (A Company LTD) | M6: Supplier Representative Name: | Q6: ='Capacity Planning'!E12 -> Example (A Person)
B8: Supplier Address: | E8: ='Capacity Planning'!E7:L7 -> Example (Stephenson Industrial Estate, Washington, Tyne and Wear, NE37 3HR) | M8: Supplier Email Address: | Q8: ='Capacity Planning'!E14 -> Example (aperson@acompanyltd.com)
M10: Supplier Representative Role: | Q10: ='Capacity Planning'!J12 -> Example (Capacity Planner)
B12: Shared Process Name: | E12: ='Capacity Planning'!H27 -> Example 3 | M12: Supplier Phone Number: | Q12: ='Capacity Planning'!J14 -> 07700000000
B16: Part Name: | F16: ='Capacity Planning'!E19 -> Example (A part name) | R16: Other Customer Parts
B18: Part Number: | F18: ='Capacity Planning'!J19 -> Example (1234 KUK123) | R18: Other Customer Parts
B20: Capacity Study Volume: | F20: ='Capacity Planning'!J21 -> 2904
B22: Net Available Time for Process: | F22: ='Capacity Planning'!H33 -> 6450
B24: Total planned downtime per week (Minutes): | F24: ='Capacity Planning'!H40 -> 225
B26: Operation Time (Minutes): | F26: =F22-F24 -> 6225 | H26: =H22-H24 -> 0 | J26: =J22-J24 -> 0 | L26: =L22-L24 -> 0 | N26: =N22-N24 -> 0 | P26: =P22-P24 -> 0 | R26: =R22-R24 -> 0
B28: Projected parts rejected and reworked (%): | F28: ='Capacity Planning'!H43 -> 0.0245
B30: Ideal planned cycle time (Seconds): | F30: ='Capacity Planning'!H47 -> 100
T31: Total
B32: Calculated allocation % to meet demand (%): | F32: ='Capacity Planning'!H50 -> 0.803655814 | T32: =SUM(E32:R32) -> 0.803655814
B34: Planned production per week (Parts): | F34: =IFERROR((((F22*F32)-F24))*(60/F30),"-") -> 2975.148 | H34: =IFERROR((((H22*H32)-H24))*(60/H30),"-") -> - | J34: =IFERROR((((J22*J32)-J24))*(60/J30),"-") -> - | L34: =IFERROR((((L22*L32)-L24))*(60/L30),"-") -> - | N34: =IFERROR((((N22*N32)-N24))*(60/N30),"-") -> - | P34: =IFERROR((((P22*P32)-P24))*(60/P30),"-") -> - | R34: =IFERROR((((R22*R32)-R24))*(60/R30),"-") -> - | X34: =IFERROR(((R26*60)/R30)*R32,"-") -> -

Sheet Process 4 Shared Loading Plan (hidden)
E3: KSPQP - SHARED LOADING PLAN PROCESS 4
R4: Date completed: | S4: ='Capacity Planning'!L3 -> 2023-11-08
B6: Supplier Company Name: | E6: ='Capacity Planning'!E5:L5 -> Example (A Company LTD) | M6: Supplier Representative Name: | Q6: ='Capacity Planning'!E12 -> Example (A Person)
B8: Supplier Address: | E8: ='Capacity Planning'!E7:L7 -> Example (Stephenson Industrial Estate, Washington, Tyne and Wear, NE37 3HR) | M8: Supplier Email Address: | Q8: ='Capacity Planning'!E14 -> Example (aperson@acompanyltd.com)
M10: Supplier Representative Role: | Q10: ='Capacity Planning'!J12 -> Example (Capacity Planner)
B12: Shared Process Name: | E12: ='Capacity Planning'!I27 -> Example 4 | M12: Supplier Phone Number: | Q12: ='Capacity Planning'!J14 -> 07700000000
B16: Part Name: | F16: ='Capacity Planning'!E19 -> Example (A part name) | R16: Other Customer Parts
B18: Part Number: | F18: ='Capacity Planning'!J19 -> Example (1234 KUK123) | R18: Other Customer Parts
B20: Capacity Study Volume: | F20: ='Capacity Planning'!J21 -> 2904
B22: Net Available Time for Process: | F22: ='Capacity Planning'!I33 -> 0
B24: Total planned downtime per week (Minutes): | F24: ='Capacity Planning'!I40 -> 0
B26: Operation Time (Minutes): | F26: =F22-F24 -> 0 | H26: =H22-H24 -> 0 | J26: =J22-J24 -> 0 | L26: =L22-L24 -> 0 | N26: =N22-N24 -> 0 | P26: =P22-P24 -> 0 | R26: =R22-R24 -> 0
B28: Projected parts rejected and reworked (%): | F28: ='Capacity Planning'!I43 -> 0
B30: Ideal planned cycle time (Seconds): | F30: ='Capacity Planning'!I47 -> 0
T31: Total
B32: Calculated allocation % to meet demand (%): | F32: ='Capacity Planning'!I50 -> - | T32: =SUM(E32:R32) -> 0
B34: Planned production per week (Parts): | F34: =IFERROR((((F22*F32)-F24))*(60/F30),"-") -> - | H34: =IFERROR((((H22*H32)-H24))*(60/H30),"-") -> - | J34: =IFERROR((((J22*J32)-J24))*(60/J30),"-") -> - | L34: =IFERROR((((L22*L32)-L24))*(60/L30),"-") -> - | N34: =IFERROR((((N22*N32)-N24))*(60/N30),"-") -> - | P34: =IFERROR((((P22*P32)-P24))*(60/P30),"-") -> - | R34: =IFERROR((((R22*R32)-R24))*(60/R30),"-") -> - | X34: =IFERROR(((R26*60)/R30)*R32,"-") -> -

Sheet Process 5 Shared Loading Plan (hidden)
E3: KSPQP - SHARED LOADING PLAN PROCESS 5
R4: Date completed: | S4: ='Capacity Planning'!L3 -> 2023-11-08
B6: Supplier Company Name: | E6: ='Capacity Planning'!E5:L5 -> Example (A Company LTD) | M6: Supplier Representative Name: | Q6: ='Capacity Planning'!E12 -> Example (A Person)
B8: Supplier Address: | E8: ='Capacity Planning'!E7:L7 -> Example (Stephenson Industrial Estate, Washington, Tyne and Wear, NE37 3HR) | M8: Supplier Email Address: | Q8: ='Capacity Planning'!E14 -> Example (aperson@acompanyltd.com)
M10: Supplier Representative Role: | Q10: ='Capacity Planning'!J12 -> Example (Capacity Planner)
B12: Shared Process Name: | E12: ='Capacity Planning'!J27 -> Example 5 | M12: Supplier Phone Number: | Q12: ='Capacity Planning'!J14 -> 07700000000
B16: Part Name: | F16: ='Capacity Planning'!E19 -> Example (A part name) | R16: Other Customer Parts
B18: Part Number: | F18: ='Capacity Planning'!J19 -> Example (1234 KUK123) | R18: Other Customer Parts
B20: Capacity Study Volume: | F20: ='Capacity Planning'!J21 -> 2904
B22: Net Available Time for Process: | F22: ='Capacity Planning'!J33 -> 0
B24: Total planned downtime per week (Minutes): | F24: ='Capacity Planning'!J40 -> 0
B26: Operation Time (Minutes): | F26: =F22-F24 -> 0 | H26: =H22-H24 -> 0 | J26: =J22-J24 -> 0 | L26: =L22-L24 -> 0 | N26: =N22-N24 -> 0 | P26: =P22-P24 -> 0 | R26: =R22-R24 -> 0
B28: Projected parts rejected and reworked (%): | F28: ='Capacity Planning'!J43 -> 0
B30: Ideal planned cycle time (Seconds): | F30: ='Capacity Planning'!J47 -> 0
T31: Total
B32: Calculated allocation % to meet demand (%): | F32: ='Capacity Planning'!J50 -> - | T32: =SUM(E32:R32) -> 0
B34: Planned production per week (Parts): | F34: =IFERROR((((F22*F32)-F24))*(60/F30),"-") -> - | H34: =IFERROR((((H22*H32)-H24))*(60/H30),"-") -> - | J34: =IFERROR((((J22*J32)-J24))*(60/J30),"-") -> - | L34: =IFERROR((((L22*L32)-L24))*(60/L30),"-") -> - | N34: =IFERROR((((N22*N32)-N24))*(60/N30),"-") -> - | P34: =IFERROR((((P22*P32)-P24))*(60/P30),"-") -> - | R34: =IFERROR((((R22*R32)-R24))*(60/R30),"-") -> - | X34: =IFERROR(((R26*60)/R30)*R32,"-") -> -

Sheet Process 6 Shared Loading Plan (hidden)
E3: KSPQP - SHARED LOADING PLAN PROCESS 6
R4: Date completed: | S4: ='Capacity Planning'!L3 -> 2023-11-08
B6: Supplier Company Name: | E6: ='Capacity Planning'!E5:L5 -> Example (A Company LTD) | M6: Supplier Representative Name: | Q6: ='Capacity Planning'!E12 -> Example (A Person)
B8: Supplier Address: | E8: ='Capacity Planning'!E7:L7 -> Example (Stephenson Industrial Estate, Washington, Tyne and Wear, NE37 3HR) | M8: Supplier Email Address: | Q8: ='Capacity Planning'!E14 -> Example (aperson@acompanyltd.com)
M10: Supplier Representative Role: | Q10: ='Capacity Planning'!J12 -> Example (Capacity Planner)
B12: Shared Process Name: | E12: ='Capacity Planning'!K27 -> Example 6 | M12: Supplier Phone Number: | Q12: ='Capacity Planning'!J14 -> 07700000000
B16: Part Name: | F16: ='Capacity Planning'!E19 -> Example (A part name) | R16: Other Customer Parts
B18: Part Number: | F18: ='Capacity Planning'!J19 -> Example (1234 KUK123) | R18: Other Customer Parts
B20: Capacity Study Volume: | F20: ='Capacity Planning'!J21 -> 2904
B22: Net Available Time for Process: | F22: ='Capacity Planning'!K33 -> 0
B24: Total planned downtime per week (Minutes): | F24: ='Capacity Planning'!K40 -> 0
B26: Operation Time (Minutes): | F26: =F22-F24 -> 0 | H26: =H22-H24 -> 0 | J26: =J22-J24 -> 0 | L26: =L22-L24 -> 0 | N26: =N22-N24 -> 0 | P26: =P22-P24 -> 0 | R26: =R22-R24 -> 0
B28: Projected parts rejected and reworked (%): | F28: ='Capacity Planning'!K43 -> 0
B30: Ideal planned cycle time (Seconds): | F30: ='Capacity Planning'!K47 -> 0
T31: Total
B32: Calculated allocation % to meet demand (%): | F32: ='Capacity Planning'!K50 -> - | T32: =SUM(E32:R32) -> 0
B34: Planned production per week (Parts): | F34: =IFERROR((((F22*F32)-F24))*(60/F30),"-") -> - | H34: =IFERROR((((H22*H32)-H24))*(60/H30),"-") -> - | J34: =IFERROR((((J22*J32)-J24))*(60/J30),"-") -> - | L34: =IFERROR((((L22*L32)-L24))*(60/L30),"-") -> - | N34: =IFERROR((((N22*N32)-N24))*(60/N30),"-") -> - | P34: =IFERROR((((P22*P32)-P24))*(60/P30),"-") -> - | R34: =IFERROR((((R22*R32)-R24))*(60/R30),"-") -> - | X34: =IFERROR(((R26*60)/R30)*R32,"-") -> -

Sheet Process 7 Shared Loading Plan (hidden)
E3: KSPQP - SHARED LOADING PLAN PROCESS 7
R4: Date completed: | S4: ='Capacity Planning'!L3 -> 2023-11-08
B6: Supplier Company Name: | E6: ='Capacity Planning'!E5:L5 -> Example (A Company LTD) | M6: Supplier Representative Name: | Q6: ='Capacity Planning'!E12 -> Example (A Person)
B8: Supplier Address: | E8: ='Capacity Planning'!E7:L7 -> Example (Stephenson Industrial Estate, Washington, Tyne and Wear, NE37 3HR) | M8: Supplier Email Address: | Q8: ='Capacity Planning'!E14 -> Example (aperson@acompanyltd.com)
M10: Supplier Representative Role: | Q10: ='Capacity Planning'!J12 -> Example (Capacity Planner)
B12: Shared Process Name: | E12: ='Capacity Planning'!L27 -> Example 7 | M12: Supplier Phone Number: | Q12: ='Capacity Planning'!J14 -> 07700000000
B16: Part Name: | F16: ='Capacity Planning'!E19 -> Example (A part name) | R16: Other Customer Parts
B18: Part Number: | F18: ='Capacity Planning'!J19 -> Example (1234 KUK123) | R18: Other Customer Parts
B20: Capacity Study Volume: | F20: ='Capacity Planning'!J21 -> 2904
B22: Net Available Time for Process: | F22: ='Capacity Planning'!L33 -> 0
B24: Total planned downtime per week (Minutes): | F24: ='Capacity Planning'!L40 -> 0
B26: Operation Time (Minutes): | F26: =F22-F24 -> 0 | H26: =H22-H24 -> 0 | J26: =J22-J24 -> 0 | L26: =L22-L24 -> 0 | N26: =N22-N24 -> 0 | P26: =P22-P24 -> 0 | R26: =R22-R24 -> 0
B28: Projected parts rejected and reworked (%): | F28: ='Capacity Planning'!L43 -> 0
B30: Ideal planned cycle time (Seconds): | F30: ='Capacity Planning'!L47 -> 0
T31: Total
B32: Calculated allocation % to meet demand (%): | F32: ='Capacity Planning'!L50 -> - | T32: =SUM(E32:R32) -> 0
B34: Planned production per week (Parts): | F34: =IFERROR((((F22*F32)-F24))*(60/F30),"-") -> - | H34: =IFERROR((((H22*H32)-H24))*(60/H30),"-") -> - | J34: =IFERROR((((J22*J32)-J24))*(60/J30),"-") -> - | L34: =IFERROR((((L22*L32)-L24))*(60/L30),"-") -> - | N34: =IFERROR((((N22*N32)-N24))*(60/N30),"-") -> - | P34: =IFERROR((((P22*P32)-P24))*(60/P30),"-") -> - | R34: =IFERROR((((R22*R32)-R24))*(60/R30),"-") -> - | X34: =IFERROR(((R26*60)/R30)*R32,"-") -> -
